[Event "Titled Tuesday Blitz June 27 Late 2023"]
[White "Fernandez, Daniel"]
[Black "Ezat, Mohamed"]
[WhiteFideId "2015390"]
[BlackFideId "10600906"]
[WhiteElo "2710"]
[BlackElo "2568"]
[Result "1-0"]
[Round "6"]
[TimeControl "180+2"]
[Date "2023.06.27"]
[WhiteClock "0:00:14"]
[BlackClock "0:00:00"]
[Board "47"]

1. Nf3 {[%clk 0:02:58]}  Nf6 {[%clk 0:02:59]} 2. c4 {[%clk 0:02:58]}  g6 {[%clk 0:02:57]} 3. b4 {[%clk 0:02:57]}  Bg7 {[%clk 0:02:57]} 4. Bb2 {[%clk 0:02:57]}  O-O {[%clk 0:02:57]} 5. e3 {[%clk 0:02:57]}  d6 {[%clk 0:02:57]} 6. d4 {[%clk 0:02:57]}  e5 {[%clk 0:02:57]} 7. Nc3 {[%clk 0:02:57]}  exd4 {[%clk 0:02:56]} 8. Nxd4 {[%clk 0:02:57]}  a5 {[%clk 0:02:55]} 9. b5 {[%clk 0:02:51]}  Nbd7 {[%clk 0:02:52]} 10. Be2 {[%clk 0:02:51]}  Nc5 {[%clk 0:02:51]} 11. O-O {[%clk 0:02:49]}  Re8 {[%clk 0:02:52]} 12. Bf3 {[%clk 0:02:49]}  Nfe4 {[%clk 0:02:40]} 13. Nxe4 {[%clk 0:02:47]}  Nxe4 {[%clk 0:02:39]} 14. Bxe4 {[%clk 0:02:35]}  Rxe4 {[%clk 0:02:38]} 15. Qd3 {[%clk 0:02:35]}  Re8 {[%clk 0:02:33]} 16. e4 {[%clk 0:02:34]}  Qh4 {[%clk 0:02:16]} 17. Rfe1 {[%clk 0:02:30]}  Bg4 {[%clk 0:02:09]} 18. Qg3 {[%clk 0:02:21]}  Qxg3 {[%clk 0:01:57]} 19. hxg3 {[%clk 0:02:21]}  c5 {[%clk 0:01:53]} 20. bxc6 {[%clk 0:02:19]}  bxc6 {[%clk 0:01:53]} 21. Bc3 {[%clk 0:02:13]}  Be6 {[%clk 0:01:50]} 22. Nxe6 {[%clk 0:02:02]}  Bxc3 {[%clk 0:01:38]} 23. Nc7 {[%clk 0:02:01]}  Bxe1 {[%clk 0:01:35]} 24. Rxe1 {[%clk 0:02:00]}  Rac8 {[%clk 0:01:28]} 25. Nxe8 {[%clk 0:01:59]}  Rxe8 {[%clk 0:01:29]} 26. f3 {[%clk 0:01:55]}  f5 {[%clk 0:01:23]} 27. Rd1 {[%clk 0:01:54]}  fxe4 {[%clk 0:01:23]} 28. Rxd6 {[%clk 0:01:54]}  e3 {[%clk 0:01:06]} 29. Kf1 {[%clk 0:01:53]}  Rb8 {[%clk 0:01:06]} 30. Rxc6 {[%clk 0:01:26]}  Rb1+ {[%clk 0:00:48]} 31. Ke2 {[%clk 0:01:25]}  Rb2+ {[%clk 0:00:48]} 32. Kxe3 {[%clk 0:01:25]}  Rxg2 {[%clk 0:00:49]} 33. a4 {[%clk 0:01:21]}  Ra2 {[%clk 0:00:39]} 34. Kf4 {[%clk 0:01:14]}  Rxa4 {[%clk 0:00:38]} 35. Kg5 {[%clk 0:01:12]}  Ra3 {[%clk 0:00:36]} 36. f4 {[%clk 0:01:08]}  Rxg3+ {[%clk 0:00:35]} 37. Kf6 {[%clk 0:01:08]}  h5 {[%clk 0:00:35]} 38. c5 {[%clk 0:01:08]}  h4 {[%clk 0:00:34]} 39. Rc8+ {[%clk 0:00:37]}  Kh7 {[%clk 0:00:33]} 40. Rc7+ {[%clk 0:00:34]}  Kh6 {[%clk 0:00:29]} 41. c6 {[%clk 0:00:30]}  Rc3 {[%clk 0:00:25]} 42. Rc8 {[%clk 0:00:30]}  Kh5 {[%clk 0:00:25]} 43. c7 {[%clk 0:00:26]}  Kg4 {[%clk 0:00:24]} 44. f5 {[%clk 0:00:25]}  Rc6+ {[%clk 0:00:21]} 45. Ke5 {[%clk 0:00:25]}  h3 {[%clk 0:00:17]} 46. fxg6 {[%clk 0:00:21]}  h2 {[%clk 0:00:17]} 47. g7 {[%clk 0:00:17]}  h1=Q {[%clk 0:00:11]} 48. g8=Q+ {[%clk 0:00:15]}  Kf3 {[%clk 0:00:11]} 49. Qd5+ {[%clk 0:00:15]}  Kf2 {[%clk 0:00:00]} 50. Qxh1 {[%clk 0:00:14]} 1-0


[Site "https://www.chess.com"]

[Event "Titled Tuesday Blitz June 27 Late 2023"]
[White "Manukyan, Artyom"]
[Black "Hambleton, Aman"]
[WhiteFideId "13305786"]
[BlackFideId "2606577"]
[WhiteElo "2563"]
[BlackElo "2705"]
[Result "1-0"]
[Round "6"]
[TimeControl "180+2"]
[Date "2023.06.27"]
[WhiteClock "0:01:13"]
[BlackClock "0:00:01"]
[Board "49"]

1. e4 {[%clk 0:02:49]}  b6 {[%clk 0:02:58]} 2. d4 {[%clk 0:02:45]}  Bb7 {[%clk 0:02:56]} 3. Bd3 {[%clk 0:02:46]}  e6 {[%clk 0:02:56]} 4. f4 {[%clk 0:02:36]}  d5 {[%clk 0:02:44]} 5. e5 {[%clk 0:02:34]}  Ba6 {[%clk 0:02:43]} 6. Nf3 {[%clk 0:02:32]}  Bxd3 {[%clk 0:02:42]} 7. Qxd3 {[%clk 0:02:33]}  Qd7 {[%clk 0:02:43]} 8. O-O {[%clk 0:02:33]}  Ne7 {[%clk 0:02:43]} 9. c3 {[%clk 0:02:34]}  c5 {[%clk 0:02:43]} 10. a4 {[%clk 0:02:31]}  c4 {[%clk 0:02:43]} 11. Qe2 {[%clk 0:02:29]}  Nbc6 {[%clk 0:02:43]} 12. Be3 {[%clk 0:02:27]}  h5 {[%clk 0:02:42]} 13. Bf2 {[%clk 0:02:27]}  Nf5 {[%clk 0:02:29]} 14. Nbd2 {[%clk 0:02:26]}  Na5 {[%clk 0:02:22]} 15. Nh4 {[%clk 0:02:22]}  Be7 {[%clk 0:02:18]} 16. Nxf5 {[%clk 0:02:21]}  exf5 {[%clk 0:02:19]} 17. Rfe1 {[%clk 0:02:16]}  Qe6 {[%clk 0:02:17]} 18. Nf3 {[%clk 0:02:01]}  Nb3 {[%clk 0:02:16]} 19. Rad1 {[%clk 0:02:01]}  O-O-O {[%clk 0:01:46]} 20. Bh4 {[%clk 0:01:56]}  Bxh4 {[%clk 0:01:45]} 21. Nxh4 {[%clk 0:01:56]}  g6 {[%clk 0:01:27]} 22. Nf3 {[%clk 0:01:55]}  Qe7 {[%clk 0:00:54]} 23. Ng5 {[%clk 0:01:53]}  Rhf8 {[%clk 0:00:04]} 24. Qf3 {[%clk 0:01:50]}  Qd7 {[%clk 0:00:01]} 25. e6 {[%clk 0:01:45]}  fxe6 {[%clk 0:00:02]} 26. Rxe6 {[%clk 0:01:46]}  Rfe8 {[%clk 0:00:02]} 27. Rde1 {[%clk 0:01:46]}  Nd2 {[%clk 0:00:01]} 28. Qd1 {[%clk 0:01:24]}  Ne4 {[%clk 0:00:01]} 29. Rxg6 {[%clk 0:01:23]}  Kb8 {[%clk 0:00:01]} 30. Nxe4 {[%clk 0:01:19]}  fxe4 {[%clk 0:00:01]} 31. Qxh5 {[%clk 0:01:19]}  Qxa4 {[%clk 0:00:02]} 32. Rg7 {[%clk 0:01:17]}  Rd7 {[%clk 0:00:01]} 33. Qxe8+ {[%clk 0:01:17]}  Rd8 {[%clk 0:00:01]} 34. Qxd8# {[%clk 0:01:13]} 1-0


[Site "https://www.chess.com"]

[Event "Titled Tuesday Blitz June 27 Late 2023"]
[White "Fisher_TheGalactic"]
[Black "ElDivis"]
[WhiteElo "2695"]
[BlackElo "2561"]
[Result "1-0"]
[Round "6"]
[TimeControl "180+2"]
[Date "2023.06.27"]
[WhiteClock "0:00:46"]
[BlackClock "0:00:27"]
[Board "51"]

1. e4 {[%clk 0:03:00]}  c5 {[%clk 0:02:59]} 2. Nf3 {[%clk 0:03:00]}  d6 {[%clk 0:03:00]} 3. Bc4 {[%clk 0:02:59]}  Nc6 {[%clk 0:02:57]} 4. O-O {[%clk 0:02:57]}  Nf6 {[%clk 0:02:56]} 5. Re1 {[%clk 0:02:51]}  g6 {[%clk 0:02:52]} 6. e5 {[%clk 0:02:45]}  dxe5 {[%clk 0:02:49]} 7. Nxe5 {[%clk 0:02:46]}  Nxe5 {[%clk 0:02:49]} 8. Rxe5 {[%clk 0:02:45]}  Bg7 {[%clk 0:02:44]} 9. d3 {[%clk 0:02:33]}  O-O {[%clk 0:02:39]} 10. Re1 {[%clk 0:02:28]}  Bg4 {[%clk 0:02:33]} 11. Qd2 {[%clk 0:02:23]}  a6 {[%clk 0:02:23]} 12. a4 {[%clk 0:02:21]}  Bd7 {[%clk 0:02:12]} 13. a5 {[%clk 0:02:15]}  Bc6 {[%clk 0:02:06]} 14. Nc3 {[%clk 0:02:14]}  Qc7 {[%clk 0:02:04]} 15. h3 {[%clk 0:02:13]}  Rad8 {[%clk 0:01:59]} 16. Qf4 {[%clk 0:02:11]}  Qxf4 {[%clk 0:01:50]} 17. Bxf4 {[%clk 0:02:12]}  e6 {[%clk 0:01:49]} 18. Be3 {[%clk 0:02:03]}  Nd5 {[%clk 0:01:37]} 19. Bxd5 {[%clk 0:01:54]}  exd5 {[%clk 0:01:36]} 20. Bxc5 {[%clk 0:01:54]}  Rfe8 {[%clk 0:01:30]} 21. d4 {[%clk 0:01:54]}  h5 {[%clk 0:01:17]} 22. Na2 {[%clk 0:01:52]}  Re4 {[%clk 0:01:09]} 23. c3 {[%clk 0:01:46]}  Rde8 {[%clk 0:00:57]} 24. Rxe4 {[%clk 0:01:45]}  Rxe4 {[%clk 0:00:42]} 25. Nb4 {[%clk 0:01:43]}  Re2 {[%clk 0:00:42]} 26. Nxc6 {[%clk 0:01:18]}  bxc6 {[%clk 0:00:43]} 27. b4 {[%clk 0:00:48]}  Rc2 {[%clk 0:00:39]} 28. Re1 {[%clk 0:00:48]}  Rxc3 {[%clk 0:00:40]} 29. Re8+ {[%clk 0:00:48]}  Kh7 {[%clk 0:00:40]} 30. Re7 {[%clk 0:00:48]}  f5 {[%clk 0:00:33]} 31. Ra7 {[%clk 0:00:48]}  Rc4 {[%clk 0:00:31]} 32. Bf8 {[%clk 0:00:46]}  Kh6 {[%clk 0:00:27]} 33. Bxg7+ {[%clk 0:00:46]} 1-0


[Site "https://www.chess.com"]

[Event "Titled Tuesday Blitz June 27 Late 2023"]
[White "Bolourchifard, Farzad"]
[Black "Golubev, Mikhail"]
[WhiteFideId "12510084"]
[BlackFideId "14100983"]
[WhiteElo "2692"]
[BlackElo "2552"]
[Result "1-0"]
[Round "6"]
[TimeControl "180+2"]
[Date "2023.06.27"]
[WhiteClock "0:00:10"]
[BlackClock "0:00:00"]
[Board "52"]

1. d4 {[%clk 0:03:00]}  Nf6 {[%clk 0:02:59]} 2. Nf3 {[%clk 0:03:01]}  d6 {[%clk 0:02:59]} 3. Bg5 {[%clk 0:03:00]}  Nbd7 {[%clk 0:02:58]} 4. e3 {[%clk 0:03:01]}  e5 {[%clk 0:02:55]} 5. Be2 {[%clk 0:02:59]}  Be7 {[%clk 0:02:54]} 6. O-O {[%clk 0:02:58]}  O-O {[%clk 0:02:53]} 7. c4 {[%clk 0:02:59]}  h6 {[%clk 0:02:39]} 8. Bh4 {[%clk 0:02:58]}  Ne4 {[%clk 0:02:36]} 9. Bxe7 {[%clk 0:02:55]}  Qxe7 {[%clk 0:02:37]} 10. Bd3 {[%clk 0:02:24]}  Nef6 {[%clk 0:02:33]} 11. Be2 {[%clk 0:02:08]}  Re8 {[%clk 0:02:22]} 12. Nc3 {[%clk 0:02:08]}  e4 {[%clk 0:02:16]} 13. Nd2 {[%clk 0:02:08]}  Nf8 {[%clk 0:02:15]} 14. b4 {[%clk 0:02:06]}  Ng6 {[%clk 0:02:15]} 15. Qc2 {[%clk 0:01:45]}  h5 {[%clk 0:01:57]} 16. Rfc1 {[%clk 0:01:26]}  Bf5 {[%clk 0:01:37]} 17. Nd5 {[%clk 0:01:17]}  Qd8 {[%clk 0:01:23]} 18. Qa4 {[%clk 0:01:07]}  h4 {[%clk 0:01:04]} 19. Nf1 {[%clk 0:00:50]}  c6 {[%clk 0:00:43]} 20. Nc3 {[%clk 0:00:46]}  h3 {[%clk 0:00:36]} 21. Ng3 {[%clk 0:00:44]}  Qd7 {[%clk 0:00:29]} 22. b5 {[%clk 0:00:35]}  hxg2 {[%clk 0:00:27]} 23. bxc6 {[%clk 0:00:35]}  bxc6 {[%clk 0:00:27]} 24. d5 {[%clk 0:00:36]}  Ne5 {[%clk 0:00:23]} 25. dxc6 {[%clk 0:00:36]}  Qe6 {[%clk 0:00:22]} 26. Nd5 {[%clk 0:00:35]}  Nxd5 {[%clk 0:00:12]} 27. cxd5 {[%clk 0:00:35]}  Qg6 {[%clk 0:00:13]} 28. Qc2 {[%clk 0:00:22]}  Nd3 {[%clk 0:00:08]} 29. Rd1 {[%clk 0:00:19]}  Bg4 {[%clk 0:00:07]} 30. Bxd3 {[%clk 0:00:17]}  Bxd1 {[%clk 0:00:06]} 31. Rxd1 {[%clk 0:00:17]}  exd3 {[%clk 0:00:06]} 32. Qxd3 {[%clk 0:00:17]}  Qxd3 {[%clk 0:00:05]} 33. Rxd3 {[%clk 0:00:18]}  Kf8 {[%clk 0:00:04]} 34. Ra3 {[%clk 0:00:19]}  Ke7 {[%clk 0:00:04]} 35. Nf5+ {[%clk 0:00:19]}  Kf6 {[%clk 0:00:02]} 36. Nd4 {[%clk 0:00:10]}  Re5 {[%clk 0:00:02]} 37. Ra5 {[%clk 0:00:10]}  Rb8 {[%clk 0:00:00]} 38. Kxg2 {[%clk 0:00:10]} 1-0


[Site "https://www.chess.com"]

[Event "Titled Tuesday Blitz June 27 Late 2023"]
[White "O`Gorman, Tom"]
[Black "Korchmar, Vasiliy"]
[WhiteFideId "2508249"]
[BlackFideId "24131750"]
[WhiteElo "2552"]
[BlackElo "2689"]
[Result "0-1"]
[Round "6"]
[TimeControl "180+2"]
[Date "2023.06.27"]
[WhiteClock "0:00:13"]
[BlackClock "0:00:16"]
[Board "53"]

1. e4 {[%clk 0:03:00]}  c5 {[%clk 0:02:59]} 2. Nf3 {[%clk 0:03:00]}  d6 {[%clk 0:02:59]} 3. c3 {[%clk 0:03:00]}  Nf6 {[%clk 0:02:54]} 4. Be2 {[%clk 0:03:00]}  Nc6 {[%clk 0:02:52]} 5. d4 {[%clk 0:03:00]}  g6 {[%clk 0:02:19]} 6. O-O {[%clk 0:02:54]}  Bg7 {[%clk 0:02:18]} 7. d5 {[%clk 0:02:48]}  Na5 {[%clk 0:02:17]} 8. Re1 {[%clk 0:02:45]}  O-O {[%clk 0:02:16]} 9. Bf1 {[%clk 0:02:45]}  b5 {[%clk 0:02:13]} 10. Bxb5 {[%clk 0:02:39]}  Rb8 {[%clk 0:02:13]} 11. Bf1 {[%clk 0:02:38]}  e6 {[%clk 0:02:13]} 12. h3 {[%clk 0:02:34]}  exd5 {[%clk 0:02:13]} 13. exd5 {[%clk 0:02:35]}  Bf5 {[%clk 0:02:08]} 14. Bd3 {[%clk 0:02:29]}  Qd7 {[%clk 0:01:58]} 15. c4 {[%clk 0:02:23]}  Rfe8 {[%clk 0:01:48]} 16. Rxe8+ {[%clk 0:02:22]}  Rxe8 {[%clk 0:01:49]} 17. Nc3 {[%clk 0:02:05]}  Ne4 {[%clk 0:01:33]} 18. Ne2 {[%clk 0:01:25]}  Bxh3 {[%clk 0:01:11]} 19. gxh3 {[%clk 0:01:22]}  Qxh3 {[%clk 0:01:12]} 20. Bxe4 {[%clk 0:01:22]}  Rxe4 {[%clk 0:01:12]} 21. Ng3 {[%clk 0:01:22]}  Rg4 {[%clk 0:00:57]} 22. Qf1 {[%clk 0:01:17]}  Qh5 {[%clk 0:00:53]} 23. Bd2 {[%clk 0:01:08]}  Nxc4 {[%clk 0:00:45]} 24. Qxc4 {[%clk 0:01:07]}  Rxg3+ {[%clk 0:00:46]} 25. fxg3 {[%clk 0:01:05]}  Qxf3 {[%clk 0:00:46]} 26. Qf1 {[%clk 0:00:21]}  Qxg3+ {[%clk 0:00:25]} 27. Qg2 {[%clk 0:00:20]}  Bd4+ {[%clk 0:00:26]} 28. Kf1 {[%clk 0:00:20]}  Qd3+ {[%clk 0:00:22]} 29. Qe2 {[%clk 0:00:20]}  Qf5+ {[%clk 0:00:21]} 30. Ke1 {[%clk 0:00:19]}  Qxd5 {[%clk 0:00:19]} 31. Rd1 {[%clk 0:00:14]}  Qh1+ {[%clk 0:00:15]} 32. Qf1 {[%clk 0:00:14]}  Qh4+ {[%clk 0:00:16]} 33. Ke2 {[%clk 0:00:14]}  Qe4+ {[%clk 0:00:16]} 34. Be3 {[%clk 0:00:13]}  Qxe3# {[%clk 0:00:16]} 0-1


[Site "https://www.chess.com"]

[Event "Titled Tuesday Blitz June 27 Late 2023"]
[White "Boyer, Mahel"]
[Black "Nasir, Zehn"]
[WhiteFideId "45102422"]
[BlackFideId "2613239"]
[WhiteElo "2689"]
[BlackElo "2546"]
[Result "1-0"]
[Round "6"]
[TimeControl "180+2"]
[Date "2023.06.27"]
[WhiteClock "0:00:42"]
[BlackClock "0:00:27"]
[Board "54"]

1. e4 {[%clk 0:03:00]}  c6 {[%clk 0:03:00]} 2. Nf3 {[%clk 0:03:01]}  d5 {[%clk 0:03:00]} 3. exd5 {[%clk 0:02:58]}  cxd5 {[%clk 0:03:01]} 4. c4 {[%clk 0:02:58]}  Nf6 {[%clk 0:03:00]} 5. cxd5 {[%clk 0:02:57]}  Nxd5 {[%clk 0:03:00]} 6. Nc3 {[%clk 0:02:57]}  Nc6 {[%clk 0:02:59]} 7. Bc4 {[%clk 0:02:56]}  e6 {[%clk 0:02:59]} 8. O-O {[%clk 0:02:56]}  Be7 {[%clk 0:02:58]} 9. Re1 {[%clk 0:02:57]}  O-O {[%clk 0:02:58]} 10. d4 {[%clk 0:02:57]}  Bf6 {[%clk 0:02:56]} 11. Ne4 {[%clk 0:02:57]}  b6 {[%clk 0:02:50]} 12. Nxf6+ {[%clk 0:02:41]}  Nxf6 {[%clk 0:02:48]} 13. Bg5 {[%clk 0:02:37]}  Bb7 {[%clk 0:02:48]} 14. Rc1 {[%clk 0:02:38]}  Rc8 {[%clk 0:02:48]} 15. Bd3 {[%clk 0:02:34]}  Nb4 {[%clk 0:02:44]} 16. Rxc8 {[%clk 0:02:32]}  Qxc8 {[%clk 0:02:18]} 17. Bxf6 {[%clk 0:01:46]}  Nxd3 {[%clk 0:02:18]} 18. Qxd3 {[%clk 0:01:37]}  gxf6 {[%clk 0:02:18]} 19. h3 {[%clk 0:01:24]}  Kh8 {[%clk 0:02:16]} 20. Qe3 {[%clk 0:01:19]}  Rg8 {[%clk 0:02:15]} 21. Qf4 {[%clk 0:01:20]}  Qd8 {[%clk 0:02:01]} 22. Rc1 {[%clk 0:01:14]}  Bxf3 {[%clk 0:01:22]} 23. Qxf3 {[%clk 0:01:12]}  Qxd4 {[%clk 0:01:23]} 24. Rc7 {[%clk 0:01:05]}  Qxb2 {[%clk 0:01:16]} 25. Rxf7 {[%clk 0:01:04]}  Qa1+ {[%clk 0:00:58]} 26. Kh2 {[%clk 0:01:02]}  Qe5+ {[%clk 0:00:59]} 27. g3 {[%clk 0:01:03]}  a5 {[%clk 0:00:51]} 28. Rxf6 {[%clk 0:00:59]}  b5 {[%clk 0:00:46]} 29. Rf7 {[%clk 0:00:58]}  Rg7 {[%clk 0:00:42]} 30. Qa8+ {[%clk 0:00:54]}  Rg8 {[%clk 0:00:41]} 31. Qxa5 {[%clk 0:00:53]}  Qc5 {[%clk 0:00:33]} 32. Qe1 {[%clk 0:00:47]}  e5 {[%clk 0:00:33]} 33. Qe4 {[%clk 0:00:46]}  Rg7 {[%clk 0:00:30]} 34. Qa8+ {[%clk 0:00:45]}  Rg8 {[%clk 0:00:30]} 35. Qb7 {[%clk 0:00:44]}  Qc4 {[%clk 0:00:27]} 36. Rxh7# {[%clk 0:00:42]} 1-0


[Site "https://www.chess.com"]

[Event "Titled Tuesday Blitz June 27 Late 2023"]
[White "Kuzmin, Roman"]
[Black "Rosen, Eric"]
[WhiteFideId "44134932"]
[BlackFideId "2032562"]
[WhiteElo "2538"]
[BlackElo "2672"]
[Result "0-1"]
[Round "6"]
[TimeControl "180+2"]
[Date "2023.06.27"]
[WhiteClock "0:01:00"]
[BlackClock "0:00:30"]
[Board "58"]

1. e4 {[%clk 0:03:00]}  c5 {[%clk 0:02:46]} 2. Nf3 {[%clk 0:02:59]}  Nc6 {[%clk 0:02:45]} 3. d4 {[%clk 0:02:59]}  cxd4 {[%clk 0:02:46]} 4. Nxd4 {[%clk 0:03:00]}  g6 {[%clk 0:02:44]} 5. Nc3 {[%clk 0:03:00]}  Bg7 {[%clk 0:02:39]} 6. Be3 {[%clk 0:03:00]}  Nf6 {[%clk 0:02:39]} 7. Nxc6 {[%clk 0:03:00]}  bxc6 {[%clk 0:02:37]} 8. e5 {[%clk 0:03:00]}  Nd5 {[%clk 0:02:37]} 9. Nxd5 {[%clk 0:03:00]}  cxd5 {[%clk 0:02:38]} 10. Qxd5 {[%clk 0:03:01]}  Rb8 {[%clk 0:02:38]} 11. O-O-O {[%clk 0:02:59]}  O-O {[%clk 0:02:36]} 12. f4 {[%clk 0:02:53]}  d6 {[%clk 0:02:25]} 13. Bd4 {[%clk 0:02:40]}  Be6 {[%clk 0:02:10]} 14. Qf3 {[%clk 0:02:23]}  Qa5 {[%clk 0:02:10]} 15. a3 {[%clk 0:02:05]}  dxe5 {[%clk 0:01:51]} 16. Bc3 {[%clk 0:02:05]}  Qa4 {[%clk 0:01:29]} 17. Bxe5 {[%clk 0:01:51]}  Bxe5 {[%clk 0:01:24]} 18. fxe5 {[%clk 0:01:52]}  Bg4 {[%clk 0:01:19]} 19. Qd3 {[%clk 0:01:35]}  Bxd1 {[%clk 0:01:17]} 20. Qxd1 {[%clk 0:01:36]}  Qf4+ {[%clk 0:01:13]} 21. Qd2 {[%clk 0:01:37]}  Qxe5 {[%clk 0:01:05]} 22. c3 {[%clk 0:01:37]}  Rfd8 {[%clk 0:01:04]} 23. Bd3 {[%clk 0:01:38]}  Rd6 {[%clk 0:00:49]} 24. Re1 {[%clk 0:01:37]}  Qxh2 {[%clk 0:00:46]} 25. Qc2 {[%clk 0:01:32]}  Qg3 {[%clk 0:00:42]} 26. Rd1 {[%clk 0:01:22]}  Rbd8 {[%clk 0:00:42]} 27. Be2 {[%clk 0:01:22]}  Qe3+ {[%clk 0:00:38]} 28. Kb1 {[%clk 0:01:22]}  Rd2 {[%clk 0:00:33]} 29. Qc1 {[%clk 0:01:08]}  Qxe2 {[%clk 0:00:30]} 30. Re1 {[%clk 0:01:05]}  Rxb2+ {[%clk 0:00:30]} 31. Qxb2 {[%clk 0:01:04]}  Qxe1+ {[%clk 0:00:30]} 32. Ka2 {[%clk 0:01:00]}  Rd2 {[%clk 0:00:30]} 0-1


[Site "https://www.chess.com"]

[Event "Titled Tuesday Blitz June 27 Late 2023"]
[White "Ismagilov, Damir"]
[Black "Stoleriu, George"]
[WhiteFideId "34199982"]
[BlackFideId "1227505"]
[WhiteElo "2536"]
[BlackElo "2666"]
[Result "0-1"]
[Round "6"]
[TimeControl "180+2"]
[Date "2023.06.27"]
[WhiteClock "0:00:00"]
[BlackClock "0:00:12"]
[Board "59"]

1. d4 {[%clk 0:03:00]}  e6 {[%clk 0:03:00]} 2. Bf4 {[%clk 0:03:00]}  Nf6 {[%clk 0:02:55]} 3. e3 {[%clk 0:03:00]}  b6 {[%clk 0:02:56]} 4. Nf3 {[%clk 0:02:59]}  Bb7 {[%clk 0:02:57]} 5. h3 {[%clk 0:03:00]}  d6 {[%clk 0:02:58]} 6. Nbd2 {[%clk 0:02:54]}  Nbd7 {[%clk 0:02:58]} 7. Bd3 {[%clk 0:02:43]}  Qe7 {[%clk 0:02:57]} 8. e4 {[%clk 0:02:41]}  e5 {[%clk 0:02:57]} 9. dxe5 {[%clk 0:02:42]}  dxe5 {[%clk 0:02:57]} 10. Bh2 {[%clk 0:02:40]}  g6 {[%clk 0:02:52]} 11. Bb5 {[%clk 0:02:22]}  a6 {[%clk 0:02:49]} 12. Bxd7+ {[%clk 0:02:14]}  Nxd7 {[%clk 0:02:50]} 13. O-O {[%clk 0:02:12]}  Bg7 {[%clk 0:02:48]} 14. Qe2 {[%clk 0:02:09]}  O-O {[%clk 0:02:34]} 15. Rad1 {[%clk 0:02:04]}  Nc5 {[%clk 0:02:31]} 16. Rfe1 {[%clk 0:01:28]}  Rad8 {[%clk 0:02:22]} 17. Bg3 {[%clk 0:01:23]}  Rd7 {[%clk 0:02:08]} 18. Nc4 {[%clk 0:00:54]}  f6 {[%clk 0:02:02]} 19. Rxd7 {[%clk 0:00:47]}  Qxd7 {[%clk 0:02:03]} 20. Rd1 {[%clk 0:00:43]}  Qe7 {[%clk 0:01:47]} 21. Nfd2 {[%clk 0:00:43]}  Rd8 {[%clk 0:01:47]} 22. f3 {[%clk 0:00:43]}  Bh6 {[%clk 0:01:42]} 23. Bf2 {[%clk 0:00:40]}  Ne6 {[%clk 0:01:37]} 24. c3 {[%clk 0:00:40]}  Nf4 {[%clk 0:01:36]} 25. Qf1 {[%clk 0:00:38]}  Qd7 {[%clk 0:01:35]} 26. Ne3 {[%clk 0:00:33]}  Bf8 {[%clk 0:00:43]} 27. Nb3 {[%clk 0:00:33]}  Qe7 {[%clk 0:00:39]} 28. Rxd8 {[%clk 0:00:34]}  Qxd8 {[%clk 0:00:40]} 29. Nc1 {[%clk 0:00:29]}  Bc5 {[%clk 0:00:38]} 30. g3 {[%clk 0:00:26]}  Nh5 {[%clk 0:00:21]} 31. Kg2 {[%clk 0:00:26]}  Kg7 {[%clk 0:00:20]} 32. Qd3 {[%clk 0:00:25]}  Qe7 {[%clk 0:00:19]} 33. Nd5 {[%clk 0:00:24]}  Bxd5 {[%clk 0:00:18]} 34. Qxd5 {[%clk 0:00:23]}  Bxf2 {[%clk 0:00:18]} 35. Kxf2 {[%clk 0:00:24]}  Kh6 {[%clk 0:00:11]} 36. Nd3 {[%clk 0:00:25]}  Ng7 {[%clk 0:00:10]} 37. Nb4 {[%clk 0:00:23]}  a5 {[%clk 0:00:08]} 38. Nc6 {[%clk 0:00:21]}  Qf8 {[%clk 0:00:09]} 39. Qd2+ {[%clk 0:00:18]}  g5 {[%clk 0:00:10]} 40. Qd7 {[%clk 0:00:14]}  Qc5+ {[%clk 0:00:09]} 41. Kg2 {[%clk 0:00:12]}  Qb5 {[%clk 0:00:09]} 42. Kf2 {[%clk 0:00:05]}  Qxb2+ {[%clk 0:00:09]} 43. Kf1 {[%clk 0:00:04]}  Qxc3 {[%clk 0:00:10]} 44. Ne7 {[%clk 0:00:02]}  Qxf3+ {[%clk 0:00:10]} 45. Ke1 {[%clk 0:00:02]}  Qxe4+ {[%clk 0:00:10]} 46. Kf1 {[%clk 0:00:01]}  Qf3+ {[%clk 0:00:11]} 47. Kg1 {[%clk 0:00:02]}  Qxg3+ {[%clk 0:00:11]} 48. Kf1 {[%clk 0:00:01]}  Qf4+ {[%clk 0:00:11]} 49. Kg1 {[%clk 0:00:01]}  Qd4+ {[%clk 0:00:11]} 50. Kg2 {[%clk 0:00:00]}  Qxd7 {[%clk 0:00:12]} 0-1


[Site "https://www.chess.com"]